[Event "Titled Tuesday Blitz February 14 Early 2023"]
[White "Cruz Lledo, Pablo"]
[Black "Avinash, Ramesh"]
[WhiteFideId "2297361"]
[BlackFideId "45018340"]
[WhiteElo "2373"]
[BlackElo "2319"]
[Result "1/2-1/2"]
[Round "03"]
[TimeControl "180+2"]
[Date "2023.02.15"]
[WhiteClock "0:00:01"]
[BlackClock "0:00:23"]

1. d4 {[%clk 0:03:00]}  Nf6 {[%clk 0:03:00]} 2. c4 {[%clk 0:02:57]}  g6 {[%clk 0:03:00]} 3. Nf3 {[%clk 0:02:56]}  Bg7 {[%clk 0:03:00]} 4. Nc3 {[%clk 0:02:55]}  O-O {[%clk 0:03:01]} 5. g3 {[%clk 0:02:53]}  d6 {[%clk 0:03:00]} 6. Bg2 {[%clk 0:02:54]}  Nc6 {[%clk 0:02:55]} 7. O-O {[%clk 0:02:54]}  e5 {[%clk 0:02:56]} 8. d5 {[%clk 0:02:52]}  Ne7 {[%clk 0:02:55]} 9. e4 {[%clk 0:02:52]}  Ne8 {[%clk 0:02:52]} 10. Ne1 {[%clk 0:02:52]}  f5 {[%clk 0:02:52]} 11. Nd3 {[%clk 0:02:52]}  Nf6 {[%clk 0:02:50]} 12. b4 {[%clk 0:02:48]}  a5 {[%clk 0:02:50]} 13. Ba3 {[%clk 0:02:42]}  axb4 {[%clk 0:02:49]} 14. Bxb4 {[%clk 0:02:43]}  fxe4 {[%clk 0:02:49]} 15. Nxe4 {[%clk 0:02:43]}  Nxe4 {[%clk 0:02:49]} 16. Bxe4 {[%clk 0:02:42]}  b6 {[%clk 0:02:50]} 17. a4 {[%clk 0:02:42]}  Bf5 {[%clk 0:02:43]} 18. f3 {[%clk 0:02:39]}  Qd7 {[%clk 0:02:39]} 19. a5 {[%clk 0:02:31]}  bxa5 {[%clk 0:02:39]} 20. Rxa5 {[%clk 0:02:31]}  Bh3 {[%clk 0:02:39]} 21. Rf2 {[%clk 0:02:27]}  Nf5 {[%clk 0:02:36]} 22. Rfa2 {[%clk 0:02:12]}  Rxa5 {[%clk 0:02:35]} 23. Bxa5 {[%clk 0:02:07]}  Bh6 {[%clk 0:02:35]} 24. Bd2 {[%clk 0:02:03]}  Bxd2 {[%clk 0:02:30]} 25. Qxd2 {[%clk 0:02:04]}  Nd4 {[%clk 0:02:31]} 26. Ne1 {[%clk 0:01:53]}  Qg4 {[%clk 0:02:26]} 27. Qe3 {[%clk 0:01:43]}  Kg7 {[%clk 0:02:10]} 28. c5 {[%clk 0:01:28]}  h5 {[%clk 0:02:01]} 29. cxd6 {[%clk 0:01:12]}  Qd7 {[%clk 0:01:36]} 30. Qg5 {[%clk 0:00:54]}  Qxd6 {[%clk 0:01:32]} 31. Rf2 {[%clk 0:00:38]}  Qf6 {[%clk 0:01:27]} 32. Qc1 {[%clk 0:00:29]}  Qb6 {[%clk 0:01:23]} 33. Qb2 {[%clk 0:00:17]}  Rb8 {[%clk 0:01:08]} 34. Qxb6 {[%clk 0:00:15]}  Rxb6 {[%clk 0:01:09]} 35. Rd2 {[%clk 0:00:14]}  Ra6 {[%clk 0:01:04]} 36. Kf2 {[%clk 0:00:14]}  g5 {[%clk 0:01:00]} 37. Nd3 {[%clk 0:00:14]}  Kf6 {[%clk 0:00:58]} 38. f4 {[%clk 0:00:14]}  exf4 {[%clk 0:00:55]} 39. gxf4 {[%clk 0:00:15]}  Ra1 {[%clk 0:00:48]} 40. Ne1 {[%clk 0:00:10]}  Nb5 {[%clk 0:00:46]} 41. fxg5+ {[%clk 0:00:08]}  Kxg5 {[%clk 0:00:46]} 42. Bg2 {[%clk 0:00:05]}  Bf5 {[%clk 0:00:43]} 43. Nf3+ {[%clk 0:00:05]}  Kf6 {[%clk 0:00:42]} 44. Nd4 {[%clk 0:00:06]}  Nd6 {[%clk 0:00:37]} 45. h3 {[%clk 0:00:05]}  Bxh3 {[%clk 0:00:34]} 46. Bxh3 {[%clk 0:00:04]}  Ne4+ {[%clk 0:00:34]} 47. Ke3 {[%clk 0:00:04]}  Nxd2 {[%clk 0:00:34]} 48. Kxd2 {[%clk 0:00:05]}  Ke5 {[%clk 0:00:34]} 49. Nc2 {[%clk 0:00:04]}  Rh1 {[%clk 0:00:33]} 50. Be6 {[%clk 0:00:04]}  Rh2+ {[%clk 0:00:30]} 51. Kd3 {[%clk 0:00:04]}  c6 {[%clk 0:00:30]} 52. Ne3 {[%clk 0:00:05]}  cxd5 {[%clk 0:00:25]} 53. Bxd5 {[%clk 0:00:06]}  Rh3 {[%clk 0:00:25]} 54. Bg2 {[%clk 0:00:05]}  Rg3 {[%clk 0:00:25]} 55. Ke2 {[%clk 0:00:03]}  Kf4 {[%clk 0:00:20]} 56. Nd5+ {[%clk 0:00:04]}  Kg5 {[%clk 0:00:19]} 57. Ne3 {[%clk 0:00:03]}  h4 {[%clk 0:00:14]} 58. Kf2 {[%clk 0:00:03]}  Kf4 {[%clk 0:00:08]} 59. Nd5+ {[%clk 0:00:04]}  Ke5 {[%clk 0:00:09]} 60. Ne3 {[%clk 0:00:05]}  Rg8 {[%clk 0:00:09]} 61. Bf3 {[%clk 0:00:03]}  Rb8 {[%clk 0:00:07]} 62. Ng2 {[%clk 0:00:02]}  Rb2+ {[%clk 0:00:06]} 63. Kg1 {[%clk 0:00:01]}  h3 {[%clk 0:00:06]} 64. Ne3 {[%clk 0:00:02]}  Kf4 {[%clk 0:00:06]} 65. Nd1 {[%clk 0:00:02]}  Rd2 {[%clk 0:00:05]} 66. Bh5 {[%clk 0:00:03]}  Kg3 {[%clk 0:00:05]} 67. Ne3 {[%clk 0:00:03]}  Kh4 {[%clk 0:00:02]} 68. Bf3 {[%clk 0:00:02]}  Ra2 {[%clk 0:00:03]} 69. Nf1 {[%clk 0:00:02]}  Kg5 {[%clk 0:00:03]} 70. Be4 {[%clk 0:00:02]}  Kf4 {[%clk 0:00:03]} 71. Bh1 {[%clk 0:00:02]}  Kg4 {[%clk 0:00:04]} 72. Bd5 {[%clk 0:00:03]}  Kh4 {[%clk 0:00:05]} 73. Bxa2 {[%clk 0:00:03]}  Kg4 {[%clk 0:00:05]} 74. Bd5 {[%clk 0:00:03]}  Kh4 {[%clk 0:00:05]} 75. Bh1 {[%clk 0:00:04]}  Kg4 {[%clk 0:00:06]} 76. Kh2 {[%clk 0:00:05]}  Kh4 {[%clk 0:00:06]} 77. Ng3 {[%clk 0:00:05]}  Kg4 {[%clk 0:00:07]} 78. Bd5 {[%clk 0:00:06]}  Kh4 {[%clk 0:00:08]} 79. Be6 {[%clk 0:00:06]}  Kg5 {[%clk 0:00:08]} 80. Kxh3 {[%clk 0:00:07]}  Kf4 {[%clk 0:00:09]} 81. Bg4 {[%clk 0:00:08]}  Ke3 {[%clk 0:00:09]} 82. Kh4 {[%clk 0:00:09]}  Kf4 {[%clk 0:00:10]} 83. Nh5+ {[%clk 0:00:08]}  Ke5 {[%clk 0:00:11]} 84. Kg3 {[%clk 0:00:09]}  Ke4 {[%clk 0:00:11]} 85. Bf3+ {[%clk 0:00:09]}  Ke3 {[%clk 0:00:12]} 86. Nf4 {[%clk 0:00:09]}  Kd4 {[%clk 0:00:13]} 87. Kf2 {[%clk 0:00:10]}  Kc3 {[%clk 0:00:13]} 88. Ke3 {[%clk 0:00:11]}  Kc4 {[%clk 0:00:14]} 89. Be4 {[%clk 0:00:11]}  Kc3 {[%clk 0:00:14]} 90. Bd5 {[%clk 0:00:09]}  Kc2 {[%clk 0:00:15]} 91. Ne2 {[%clk 0:00:09]}  Kb2 {[%clk 0:00:15]} 92. Kd3 {[%clk 0:00:09]}  Ka1 {[%clk 0:00:15]} 93. Kc3 {[%clk 0:00:07]}  Kb1 {[%clk 0:00:15]} 94. Be4+ {[%clk 0:00:07]}  Ka1 {[%clk 0:00:16]} 95. Bc2 {[%clk 0:00:06]}  Ka2 {[%clk 0:00:16]} 96. Nd4 {[%clk 0:00:06]}  Ka1 {[%clk 0:00:17]} 97. Nc6 {[%clk 0:00:02]}  Ka2 {[%clk 0:00:17]} 98. Nb4+ {[%clk 0:00:03]}  Ka1 {[%clk 0:00:18]} 99. Nd3 {[%clk 0:00:04]}  Ka2 {[%clk 0:00:18]} 100. Bb3+ {[%clk 0:00:03]}  Ka1 {[%clk 0:00:19]} 101. Bd1 {[%clk 0:00:01]}  Ka2 {[%clk 0:00:19]} 102. Kc2 {[%clk 0:00:01]}  Ka1 {[%clk 0:00:19]} 103. Nc5 {[%clk 0:00:01]}  Ka2 {[%clk 0:00:20]} 104. Nb3 {[%clk 0:00:02]}  Ka3 {[%clk 0:00:20]} 105. Kc3 {[%clk 0:00:02]}  Ka2 {[%clk 0:00:21]} 106. Bc2 {[%clk 0:00:03]}  Ka3 {[%clk 0:00:21]} 107. Bb1 {[%clk 0:00:03]}  Ka4 {[%clk 0:00:22]} 108. Kc4 {[%clk 0:00:04]}  Ka3 {[%clk 0:00:23]} 109. Kc3 {[%clk 0:00:01]}  Ka4 {[%clk 0:00:23]} 110. Nd4 {[%clk 0:00:02]}  Ka3 {[%clk 0:00:23]} 111. Nb5+ {[%clk 0:00:02]}  Ka4 {[%clk 0:00:24]} 112. Kc4 {[%clk 0:00:03]}  Ka5 {[%clk 0:00:24]} 113. Kc5 {[%clk 0:00:02]}  Ka4 {[%clk 0:00:25]} 114. Bc2+ {[%clk 0:00:02]}  Ka5 {[%clk 0:00:26]} 115. Bb3 {[%clk 0:00:01]}  Ka6 {[%clk 0:00:26]} 116. Kc6 {[%clk 0:00:02]}  Ka5 {[%clk 0:00:27]} 117. Kc5 {[%clk 0:00:01]}  Ka6 {[%clk 0:00:18]} 118. Nd6 {[%clk 0:00:02]}  Ka5 {[%clk 0:00:19]} 119. Nc4+ {[%clk 0:00:02]}  Ka6 {[%clk 0:00:19]} 120. Kc6 {[%clk 0:00:03]}  Ka7 {[%clk 0:00:20]} 121. Ba4 {[%clk 0:00:03]}  Ka6 {[%clk 0:00:20]} 122. Bb5+ {[%clk 0:00:03]}  Ka7 {[%clk 0:00:21]} 123. Kc7 {[%clk 0:00:03]}  Ka8 {[%clk 0:00:21]} 124. Bc6+ {[%clk 0:00:01]}  Ka7 {[%clk 0:00:22]} 125. Be8 {[%clk 0:00:02]}  Ka6 {[%clk 0:00:22]} 126. Bc6 {[%clk 0:00:01]}  Ka7 {[%clk 0:00:22]} 127. Bb5 {[%clk 0:00:02]}  Ka8 {[%clk 0:00:22]} 128. Na5 {[%clk 0:00:02]}  Ka7 {[%clk 0:00:23]} 129. Kc8 {[%clk 0:00:01]}  Kb6 {[%clk 0:00:23]} 1/2-1/2


[Site "https://www.chess.com"]

[Event "Titled Tuesday Blitz February 14 Early 2023"]
[White "Bodnaruk, Anastasia"]
[Black "Boruchovsky, Avital"]
[WhiteFideId "4181751"]
[BlackFideId "2800055"]
[WhiteElo "2350"]
[BlackElo "2539"]
[Result "1-0"]
[Round "03"]
[TimeControl "180+2"]
[Date "2023.02.15"]
[WhiteClock "0:00:05"]
[BlackClock "0:00:13"]

1. e4 {[%clk 0:03:00]}  c5 {[%clk 0:02:57]} 2. Nc3 {[%clk 0:03:00]}  d6 {[%clk 0:02:56]} 3. Nge2 {[%clk 0:02:56]}  Nf6 {[%clk 0:02:55]} 4. d4 {[%clk 0:02:56]}  cxd4 {[%clk 0:02:55]} 5. Nxd4 {[%clk 0:02:56]}  a6 {[%clk 0:02:56]} 6. h3 {[%clk 0:02:56]}  e5 {[%clk 0:02:54]} 7. Nb3 {[%clk 0:02:55]}  h5 {[%clk 0:02:51]} 8. g3 {[%clk 0:02:55]}  Be7 {[%clk 0:02:51]} 9. Bg2 {[%clk 0:02:55]}  Be6 {[%clk 0:02:51]} 10. O-O {[%clk 0:02:50]}  Nbd7 {[%clk 0:02:51]} 11. Nd5 {[%clk 0:02:36]}  Nxd5 {[%clk 0:02:51]} 12. exd5 {[%clk 0:02:36]}  Bf5 {[%clk 0:02:51]} 13. f4 {[%clk 0:02:32]}  Qc8 {[%clk 0:02:45]} 14. c3 {[%clk 0:02:29]}  e4 {[%clk 0:02:19]} 15. g4 {[%clk 0:02:03]}  hxg4 {[%clk 0:02:18]} 16. hxg4 {[%clk 0:02:03]}  Nc5 {[%clk 0:02:05]} 17. gxf5 {[%clk 0:01:34]}  Qxf5 {[%clk 0:01:53]} 18. Nxc5 {[%clk 0:01:30]}  dxc5 {[%clk 0:01:54]} 19. Be3 {[%clk 0:01:24]}  O-O-O {[%clk 0:01:49]} 20. c4 {[%clk 0:01:08]}  Rd6 {[%clk 0:01:32]} 21. Bxc5 {[%clk 0:00:40]}  Rg6 {[%clk 0:01:32]} 22. Bxe7 {[%clk 0:00:40]}  Rxg2+ {[%clk 0:00:21]} 23. Kxg2 {[%clk 0:00:40]}  Qh3+ {[%clk 0:00:19]} 24. Kf2 {[%clk 0:00:40]}  e3+ {[%clk 0:00:19]} 25. Ke2 {[%clk 0:00:34]}  Qg2+ {[%clk 0:00:16]} 26. Kd3 {[%clk 0:00:29]}  Rh2 {[%clk 0:00:15]} 27. Ba3 {[%clk 0:00:21]}  e2 {[%clk 0:00:14]} 28. Qe1 {[%clk 0:00:13]}  exf1=Q+ {[%clk 0:00:09]} 29. Qxf1 {[%clk 0:00:13]}  Qd2+ {[%clk 0:00:07]} 30. Ke4 {[%clk 0:00:13]}  Re2+ {[%clk 0:00:08]} 31. Kf5 {[%clk 0:00:13]}  Qd3+ {[%clk 0:00:08]} 32. Kg4 {[%clk 0:00:11]}  Qg6+ {[%clk 0:00:07]} 33. Kf3 {[%clk 0:00:10]}  Qe4+ {[%clk 0:00:07]} 34. Kg3 {[%clk 0:00:11]}  Re3+ {[%clk 0:00:07]} 35. Kh2 {[%clk 0:00:06]}  Qh7+ {[%clk 0:00:06]} 36. Kg1 {[%clk 0:00:07]}  Rg3+ {[%clk 0:00:06]} 37. Kf2 {[%clk 0:00:07]}  Qh2+ {[%clk 0:00:06]} 38. Ke1 {[%clk 0:00:06]}  Qc2 {[%clk 0:00:05]} 39. Qf2 {[%clk 0:00:03]}  Qd3 {[%clk 0:00:06]} 40. Rd1 {[%clk 0:00:02]}  Re3+ {[%clk 0:00:05]} 41. Qxe3 {[%clk 0:00:03]}  Qxe3+ {[%clk 0:00:06]} 42. Kf1 {[%clk 0:00:03]}  Qxf4+ {[%clk 0:00:07]} 43. Ke2 {[%clk 0:00:03]}  Qe4+ {[%clk 0:00:07]} 44. Kd2 {[%clk 0:00:03]}  Qxc4 {[%clk 0:00:08]} 45. Rc1 {[%clk 0:00:03]}  b5 {[%clk 0:00:08]} 46. Rxc4+ {[%clk 0:00:03]}  bxc4 {[%clk 0:00:09]} 47. Ke3 {[%clk 0:00:04]}  Kd7 {[%clk 0:00:09]} 48. Kd4 {[%clk 0:00:03]}  g5 {[%clk 0:00:10]} 49. Kxc4 {[%clk 0:00:04]}  g4 {[%clk 0:00:11]} 50. Kd3 {[%clk 0:00:04]}  g3 {[%clk 0:00:12]} 51. Ke3 {[%clk 0:00:04]}  f5 {[%clk 0:00:11]} 52. Kf3 {[%clk 0:00:04]}  f4 {[%clk 0:00:12]} 53. Bc5 {[%clk 0:00:04]}  Kc7 {[%clk 0:00:13]} 54. Kxf4 {[%clk 0:00:04]}  g2 {[%clk 0:00:13]} 55. Kf3 {[%clk 0:00:05]} 1-0


[Site "https://www.chess.com"]

[Event "Titled Tuesday Blitz February 14 Early 2023"]
[White "Starozhilov, Leonid"]
[Black "Ibadov, Dashgyn"]
[WhiteFideId "14106752"]
[BlackFideId "24107514"]
[WhiteElo "2313"]
[BlackElo "2391"]
[Result "0-1"]
[Round "03"]
[TimeControl "180+2"]
[Date "2023.02.15"]
[WhiteClock "0:00:03"]
[BlackClock "0:00:10"]

1. e4 {[%clk 0:03:00]}  e5 {[%clk 0:02:58]} 2. Nf3 {[%clk 0:03:00]}  Nc6 {[%clk 0:02:58]} 3. Nc3 {[%clk 0:03:01]}  Nf6 {[%clk 0:02:58]} 4. Bb5 {[%clk 0:02:59]}  Bb4 {[%clk 0:02:57]} 5. Bxc6 {[%clk 0:02:57]}  dxc6 {[%clk 0:02:55]} 6. d3 {[%clk 0:02:58]}  Bd6 {[%clk 0:02:47]} 7. h3 {[%clk 0:02:58]}  O-O {[%clk 0:02:47]} 8. Be3 {[%clk 0:02:54]}  h6 {[%clk 0:02:40]} 9. O-O {[%clk 0:02:51]}  Be6 {[%clk 0:02:40]} 10. d4 {[%clk 0:02:47]}  Nd7 {[%clk 0:02:39]} 11. Re1 {[%clk 0:02:44]}  Re8 {[%clk 0:02:34]} 12. Qd2 {[%clk 0:02:41]}  Qf6 {[%clk 0:02:29]} 13. dxe5 {[%clk 0:01:58]}  Nxe5 {[%clk 0:02:27]} 14. Nxe5 {[%clk 0:01:58]}  Bxe5 {[%clk 0:02:26]} 15. f4 {[%clk 0:01:58]}  Bxc3 {[%clk 0:02:24]} 16. bxc3 {[%clk 0:01:58]}  Rad8 {[%clk 0:02:13]} 17. Qf2 {[%clk 0:01:51]}  Qxc3 {[%clk 0:02:08]} 18. Rad1 {[%clk 0:01:50]}  Bxa2 {[%clk 0:01:54]} 19. Bd4 {[%clk 0:01:39]}  Qc4 {[%clk 0:01:50]} 20. Rd3 {[%clk 0:00:36]}  c5 {[%clk 0:01:45]} 21. Bxc5 {[%clk 0:00:35]}  b6 {[%clk 0:01:36]} 22. Bd4 {[%clk 0:00:26]}  c5 {[%clk 0:01:34]} 23. Ba1 {[%clk 0:00:22]}  f6 {[%clk 0:01:04]} 24. Qg3 {[%clk 0:00:19]}  Qf7 {[%clk 0:01:05]} 25. e5 {[%clk 0:00:17]}  fxe5 {[%clk 0:01:00]} 26. Bxe5 {[%clk 0:00:15]}  Rxd3 {[%clk 0:00:57]} 27. cxd3 {[%clk 0:00:14]}  Bd5 {[%clk 0:00:52]} 28. Ra1 {[%clk 0:00:12]}  Kh7 {[%clk 0:00:50]} 29. Kh2 {[%clk 0:00:11]}  Be6 {[%clk 0:00:49]} 30. Qf3 {[%clk 0:00:09]}  Bd5 {[%clk 0:00:48]} 31. Qg3 {[%clk 0:00:08]}  Re6 {[%clk 0:00:48]} 32. Qe3 {[%clk 0:00:06]}  Re8 {[%clk 0:00:40]} 33. g4 {[%clk 0:00:06]}  Bc6 {[%clk 0:00:39]} 34. Re1 {[%clk 0:00:05]}  Qd5 {[%clk 0:00:38]} 35. Qf2 {[%clk 0:00:05]}  Qxd3 {[%clk 0:00:37]} 36. Re3 {[%clk 0:00:04]}  Qd5 {[%clk 0:00:33]} 37. Kg3 {[%clk 0:00:04]}  b5 {[%clk 0:00:26]} 38. Qc2+ {[%clk 0:00:04]}  Kg8 {[%clk 0:00:20]} 39. Rd3 {[%clk 0:00:05]}  Qh1 {[%clk 0:00:18]} 40. Qd2 {[%clk 0:00:05]}  Qg1+ {[%clk 0:00:17]} 41. Kh4 {[%clk 0:00:05]}  Be4 {[%clk 0:00:14]} 42. Rd8 {[%clk 0:00:03]}  Rxd8 {[%clk 0:00:09]} 43. Qxd8+ {[%clk 0:00:03]}  Kh7 {[%clk 0:00:10]} 0-1


[Site "https://www.chess.com"]

[Event "Titled Tuesday Blitz February 14 Early 2023"]
[White "Badelka, Olga"]
[Black "Wagh Suyog"]
[WhiteFideId "13509926"]
[BlackFideId "25071688"]
[WhiteElo "2406"]
[BlackElo "2313"]
[Result "0-1"]
[Round "03"]
[TimeControl "180+2"]
[Date "2023.02.15"]
[WhiteClock "0:01:56"]
[BlackClock "0:01:59"]

1. d4 {[%clk 0:03:00]}  Nf6 {[%clk 0:02:57]} 2. c4 {[%clk 0:03:00]}  g6 {[%clk 0:02:56]} 3. Nf3 {[%clk 0:02:58]}  Bg7 {[%clk 0:02:56]} 4. g3 {[%clk 0:02:58]}  O-O {[%clk 0:02:55]} 5. Bg2 {[%clk 0:02:59]}  d5 {[%clk 0:02:55]} 6. cxd5 {[%clk 0:02:56]}  Nxd5 {[%clk 0:02:56]} 7. O-O {[%clk 0:02:56]}  Nb6 {[%clk 0:02:55]} 8. e3 {[%clk 0:02:56]}  Nc6 {[%clk 0:02:54]} 9. Nc3 {[%clk 0:02:55]}  Re8 {[%clk 0:02:39]} 10. h3 {[%clk 0:02:53]}  e5 {[%clk 0:02:33]} 11. d5 {[%clk 0:02:54]}  Na5 {[%clk 0:02:30]} 12. Qc2 {[%clk 0:02:44]}  Nac4 {[%clk 0:02:28]} 13. b3 {[%clk 0:02:36]}  Nd6 {[%clk 0:02:26]} 14. Bb2 {[%clk 0:02:19]}  f5 {[%clk 0:02:12]} 15. Rac1 {[%clk 0:02:14]}  Bd7 {[%clk 0:02:11]} 16. Rfd1 {[%clk 0:02:12]}  Rc8 {[%clk 0:02:04]} 17. Qe2 {[%clk 0:02:07]}  a6 {[%clk 0:02:00]} 18. Ng5 {[%clk 0:01:56]}  Qxg5 {[%clk 0:01:59]} 0-1


[Site "https://www.chess.com"]

[Event "Titled Tuesday Blitz February 14 Early 2023"]
[White "Enkhtuul, Altan-Ulzii"]
[Black "Jaracz, Pawel"]
[WhiteFideId "4901444"]
[BlackFideId "1102222"]
[WhiteElo "2254"]
[BlackElo "2467"]
[Result "0-1"]
[Round "03"]
[TimeControl "180+2"]
[Date "2023.02.15"]
[WhiteClock "0:00:01"]
[BlackClock "0:00:29"]

1. d4 {[%clk 0:02:59]}  Nf6 {[%clk 0:02:59]} 2. Nc3 {[%clk 0:02:59]}  d6 {[%clk 0:02:55]} 3. e4 {[%clk 0:02:57]}  e5 {[%clk 0:02:55]} 4. Nf3 {[%clk 0:02:52]}  Nbd7 {[%clk 0:02:55]} 5. Bc4 {[%clk 0:02:49]}  Be7 {[%clk 0:02:55]} 6. O-O {[%clk 0:02:48]}  O-O {[%clk 0:02:55]} 7. h3 {[%clk 0:02:46]}  a6 {[%clk 0:02:55]} 8. a4 {[%clk 0:02:46]}  b6 {[%clk 0:02:55]} 9. Re1 {[%clk 0:02:30]}  c6 {[%clk 0:02:55]} 10. Bg5 {[%clk 0:02:26]}  Re8 {[%clk 0:02:46]} 11. Bxf6 {[%clk 0:02:20]}  Bxf6 {[%clk 0:02:45]} 12. dxe5 {[%clk 0:02:18]}  Nxe5 {[%clk 0:02:28]} 13. Be2 {[%clk 0:02:15]}  Bb7 {[%clk 0:02:19]} 14. Nd4 {[%clk 0:02:11]}  g6 {[%clk 0:02:17]} 15. f4 {[%clk 0:01:48]}  Nd7 {[%clk 0:02:16]} 16. Bf3 {[%clk 0:01:37]}  Qc7 {[%clk 0:02:15]} 17. Nde2 {[%clk 0:01:34]}  b5 {[%clk 0:02:09]} 18. Qd2 {[%clk 0:01:30]}  b4 {[%clk 0:02:07]} 19. Nd1 {[%clk 0:01:30]}  c5 {[%clk 0:02:05]} 20. Ng3 {[%clk 0:01:25]}  Nb6 {[%clk 0:01:57]} 21. Rb1 {[%clk 0:01:12]}  Nxa4 {[%clk 0:01:54]} 22. c3 {[%clk 0:01:02]}  a5 {[%clk 0:01:50]} 23. Kh2 {[%clk 0:00:57]}  Bg7 {[%clk 0:01:40]} 24. cxb4 {[%clk 0:00:49]}  axb4 {[%clk 0:01:39]} 25. Ne3 {[%clk 0:00:48]}  Nb6 {[%clk 0:01:34]} 26. f5 {[%clk 0:00:34]}  Nd7 {[%clk 0:01:29]} 27. Ng4 {[%clk 0:00:29]}  Ne5 {[%clk 0:01:28]} 28. Nh6+ {[%clk 0:00:23]}  Kh8 {[%clk 0:01:25]} 29. Qg5 {[%clk 0:00:18]}  Qe7 {[%clk 0:01:19]} 30. Qxe7 {[%clk 0:00:16]}  Rxe7 {[%clk 0:01:19]} 31. Ng4 {[%clk 0:00:16]}  Nxg4+ {[%clk 0:01:18]} 32. hxg4 {[%clk 0:00:16]}  Ra2 {[%clk 0:01:17]} 33. Re2 {[%clk 0:00:16]}  Be5 {[%clk 0:01:17]} 34. Kh3 {[%clk 0:00:15]}  Ba6 {[%clk 0:01:10]} 35. Rd2 {[%clk 0:00:13]}  Bf4 {[%clk 0:01:08]} 36. Rdd1 {[%clk 0:00:13]}  c4 {[%clk 0:01:02]} 37. f6 {[%clk 0:00:11]}  Re6 {[%clk 0:01:00]} 38. Ne2 {[%clk 0:00:10]}  Be5 {[%clk 0:00:59]} 39. g5 {[%clk 0:00:09]}  h6 {[%clk 0:00:57]} 40. Bg4 {[%clk 0:00:09]}  Re8 {[%clk 0:00:56]} 41. Nd4 {[%clk 0:00:07]}  Bb7 {[%clk 0:00:51]} 42. Bd7 {[%clk 0:00:06]}  Rd8 {[%clk 0:00:49]} 43. Bc6 {[%clk 0:00:06]}  Bc8+ {[%clk 0:00:47]} 44. g4 {[%clk 0:00:04]}  hxg5 {[%clk 0:00:44]} 45. Bd5 {[%clk 0:00:04]}  Bxf6 {[%clk 0:00:36]} 46. Bxc4 {[%clk 0:00:05]}  Ra7 {[%clk 0:00:33]} 47. Nc6 {[%clk 0:00:05]}  Rc7 {[%clk 0:00:32]} 48. Kg3 {[%clk 0:00:06]}  Rxc6 {[%clk 0:00:32]} 49. Bxf7 {[%clk 0:00:06]}  Kg7 {[%clk 0:00:32]} 50. Bd5 {[%clk 0:00:06]}  Be5+ {[%clk 0:00:32]} 51. Kf3 {[%clk 0:00:05]}  Rc2 {[%clk 0:00:31]} 52. Bb3 {[%clk 0:00:04]}  Rf8+ {[%clk 0:00:31]} 53. Ke3 {[%clk 0:00:05]}  Rcf2 {[%clk 0:00:30]} 54. Kd3 {[%clk 0:00:01]}  Ba6+ {[%clk 0:00:29]} 55. Bc4 {[%clk 0:00:01]}  R8f3# {[%clk 0:00:29]} 0-1


[Site "https://www.chess.com"]

[Event "Titled Tuesday Blitz February 14 Early 2023"]
[White "Jarocka, Liwia"]
[Black "Makhnev, Denis"]
[WhiteFideId "21807558"]
[BlackFideId "13707647"]
[WhiteElo "2225"]
[BlackElo "2483"]
[Result "0-1"]
[Round "03"]
[TimeControl "180+2"]
[Date "2023.02.15"]
[WhiteClock "0:00:21"]
[BlackClock "0:01:23"]

1. e4 {[%clk 0:03:00]}  e5 {[%clk 0:03:00]} 2. Nf3 {[%clk 0:03:00]}  Nc6 {[%clk 0:03:01]} 3. Bc4 {[%clk 0:02:59]}  Bc5 {[%clk 0:03:00]} 4. d3 {[%clk 0:02:59]}  Nf6 {[%clk 0:03:01]} 5. O-O {[%clk 0:02:59]}  a5 {[%clk 0:03:01]} 6. c3 {[%clk 0:02:59]}  d6 {[%clk 0:03:02]} 7. Bb3 {[%clk 0:03:00]}  Ba7 {[%clk 0:02:59]} 8. Be3 {[%clk 0:02:58]}  O-O {[%clk 0:02:58]} 9. Nbd2 {[%clk 0:02:58]}  h6 {[%clk 0:02:56]} 10. h3 {[%clk 0:02:57]}  Re8 {[%clk 0:02:56]} 11. Re1 {[%clk 0:02:57]}  Ne7 {[%clk 0:02:54]} 12. d4 {[%clk 0:02:47]}  Ng6 {[%clk 0:02:54]} 13. dxe5 {[%clk 0:02:48]}  dxe5 {[%clk 0:02:54]} 14. Bxa7 {[%clk 0:02:48]}  Rxa7 {[%clk 0:02:54]} 15. Nc4 {[%clk 0:02:47]}  Qe7 {[%clk 0:02:54]} 16. Bc2 {[%clk 0:02:38]}  Rd8 {[%clk 0:02:51]} 17. Qe2 {[%clk 0:02:32]}  b5 {[%clk 0:02:27]} 18. Ne3 {[%clk 0:02:32]}  b4 {[%clk 0:02:28]} 19. Nf5 {[%clk 0:02:23]}  Qc5 {[%clk 0:02:28]} 20. Qe3 {[%clk 0:02:03]}  Qxe3 {[%clk 0:02:27]} 21. Nxe3 {[%clk 0:02:03]}  Be6 {[%clk 0:02:24]} 22. Nd5 {[%clk 0:01:47]}  Nd7 {[%clk 0:01:32]} 23. cxb4 {[%clk 0:01:39]}  c6 {[%clk 0:01:33]} 24. Ne3 {[%clk 0:01:17]}  axb4 {[%clk 0:01:32]} 25. Bb3 {[%clk 0:01:16]}  Bxb3 {[%clk 0:01:31]} 26. axb3 {[%clk 0:01:17]}  Rxa1 {[%clk 0:01:32]} 27. Rxa1 {[%clk 0:01:16]}  Nc5 {[%clk 0:01:33]} 28. Nc4 {[%clk 0:01:01]}  f6 {[%clk 0:01:29]} 29. Ncd2 {[%clk 0:00:51]}  Rd3 {[%clk 0:01:24]} 30. Ra8+ {[%clk 0:00:27]}  Kh7 {[%clk 0:01:24]} 31. Rb8 {[%clk 0:00:20]}  Nxb3 {[%clk 0:01:24]} 32. Nc4 {[%clk 0:00:21]}  c5 {[%clk 0:01:24]} 33. Nd6 {[%clk 0:00:21]}  Rxd6 {[%clk 0:01:23]} 0-1


[Site "https://www.chess.com"]

[Event "Titled Tuesday Blitz February 14 Early 2023"]
[White "Shimanov, Aleksandr"]
[Black "Baghdasaryan, Vahe"]
[WhiteFideId "4198603"]
[BlackFideId "13303139"]
[WhiteElo "2581"]
[BlackElo "2257"]
[Result "1-0"]
[Round "03"]
[TimeControl "180+2"]
[Date "2023.02.15"]
[WhiteClock "0:00:07"]
[BlackClock "0:00:07"]

1. c4 {[%clk 0:03:00]}  c6 {[%clk 0:02:50]} 2. d4 {[%clk 0:02:49]}  d5 {[%clk 0:02:48]} 3. cxd5 {[%clk 0:02:50]}  cxd5 {[%clk 0:02:47]} 4. Nc3 {[%clk 0:02:50]}  Nf6 {[%clk 0:02:47]} 5. Bf4 {[%clk 0:02:50]}  Nc6 {[%clk 0:02:45]} 6. e3 {[%clk 0:02:43]}  Bf5 {[%clk 0:02:37]} 7. Nf3 {[%clk 0:02:36]}  e6 {[%clk 0:02:35]} 8. Qb3 {[%clk 0:02:34]}  Nb4 {[%clk 0:01:51]} 9. Bb5+ {[%clk 0:02:27]}  Nd7 {[%clk 0:01:50]} 10. Ne5 {[%clk 0:02:25]}  Bc2 {[%clk 0:01:49]} 11. Bxd7+ {[%clk 0:01:48]}  Qxd7 {[%clk 0:01:46]} 12. Nxd7 {[%clk 0:01:48]}  Bxb3 {[%clk 0:01:46]} 13. Nxf8 {[%clk 0:01:46]}  Nc2+ {[%clk 0:01:37]} 14. Kd2 {[%clk 0:01:46]}  Nxa1 {[%clk 0:01:37]} 15. Rxa1 {[%clk 0:01:44]}  Bc4 {[%clk 0:01:36]} 16. Bd6 {[%clk 0:01:35]}  O-O-O {[%clk 0:00:56]} 17. Ba3 {[%clk 0:01:30]}  Rhxf8 {[%clk 0:00:54]} 18. Bxf8 {[%clk 0:01:29]}  Rxf8 {[%clk 0:00:55]} 19. Rc1 {[%clk 0:01:30]}  Kd7 {[%clk 0:00:55]} 20. h4 {[%clk 0:01:19]}  b6 {[%clk 0:00:53]} 21. f3 {[%clk 0:01:10]}  f6 {[%clk 0:00:53]} 22. b3 {[%clk 0:01:09]}  Ba6 {[%clk 0:00:52]} 23. h5 {[%clk 0:01:04]}  Bb7 {[%clk 0:00:52]} 24. Rh1 {[%clk 0:01:03]}  e5 {[%clk 0:00:52]} 25. Rh4 {[%clk 0:01:02]}  Re8 {[%clk 0:00:49]} 26. f4 {[%clk 0:00:34]}  exd4 {[%clk 0:00:35]} 27. exd4 {[%clk 0:00:35]}  b5 {[%clk 0:00:36]} 28. Nxb5 {[%clk 0:00:25]}  Re4 {[%clk 0:00:35]} 29. Rg4 {[%clk 0:00:25]}  g5 {[%clk 0:00:22]} 30. hxg6 {[%clk 0:00:25]}  hxg6 {[%clk 0:00:22]} 31. Rxg6 {[%clk 0:00:22]}  Ba6 {[%clk 0:00:21]} 32. Rg7+ {[%clk 0:00:12]}  Kc6 {[%clk 0:00:21]} 33. Nxa7+ {[%clk 0:00:13]}  Kb6 {[%clk 0:00:21]} 34. Kc3 {[%clk 0:00:09]}  Rxf4 {[%clk 0:00:20]} 35. a4 {[%clk 0:00:09]}  Rf1 {[%clk 0:00:16]} 36. Kb4 {[%clk 0:00:08]}  Bb7 {[%clk 0:00:11]} 37. Nb5 {[%clk 0:00:07]}  Rd1 {[%clk 0:00:07]} 38. a5+ {[%clk 0:00:07]}  Ka6 {[%clk 0:00:07]} 39. Rf7 {[%clk 0:00:07]} 1-0


[Site "https://www.chess.com"]